bitfinex/quotes_SOLUSD_20240613
["timestamp","ask_amount","ask_price","bid_price","bid_amount"]
[1718312680484,0.17,147.11,147.05,2.516]
[1718312681407,21.8652,147.13,147.06,2.5159]
[1718312681639,21.8652,147.13,147.05,7.5484]
[1718312681803,21.8652,147.13,147.08,2.5155]
[1718312682188,15.8617,147.13,147.09,2.5154]
[1718312682581,21.6918,147.17,147.06,45.0]
[1718312682905,21.6918,147.21,147.08,15.0929]
[1718312683223,121.6918,147.21,147.09,67.5154]
[1718312683696,100.0,147.18,147.07,6.0741]
[1718312683882,21.6324,147.17,147.07,2.5157]
[1718312684290,21.6324,147.17,147.06,45.0]
[1718312684508,45.51,147.16,147.09,2.5154]
[1718312684891,0.51,147.16,147.09,2.5154]
[1718312687005,0.51,147.16,147.1,2.5152]
[1718312687307,0.51,147.16,147.11,2.5151]
[1718312687606,0.34,147.16,147.11,2.5151]
[1718312689212,21.6324,147.17,147.12,2.5149]
[1718312690121,21.6324,147.17,147.11,2.515]
[1718312690416,21.6324,147.17,147.12,2.5149]
[1718312690713,21.6324,147.17,147.12,2.5148]
[1718312692302,21.6324,147.17,147.13,2.5147]
[1718312692715,21.1324,147.17,147.13,2.5147]
[1718312693232,21.1324,147.17,147.12,2.5148]
[1718312696029,21.1324,147.17,147.13,2.5147]
[1718312696538,21.1324,147.17,147.12,2.5148]
[1718312699932,15.1631,147.17,147.14,2.5145]
[1718312700129,15.1631,147.17,147.15,2.5144]
[1718312700349,6.6084,147.16,147.09,2.5154]
[1718312700501,6.6084,147.16,147.08,2.5155]
[1718312701123,6.6084,147.16,147.09,2.5154]
[1718312701528,20.0,147.15,147.09,2.5154]
[1718312701907,0.34,147.14,147.08,2.5156]
[1718312702333,15.9028,147.13,147.05,2.516]
[1718312702525,0.34,147.12,147.05,2.516]
[1718312703332,0.34,147.12,147.05,2.5161]
[1718312704722,0.34,147.12,147.02,39.2755]
[1718312704723,0.34,147.12,147.06,2.5159]
[1718312705339,0.34,147.12,147.07,2.5157]
[1718312705515,15.9028,147.13,147.05,5.0322]
[1718312705720,15.9028,147.13,147.07,2.5157]
[1718312706022,0.17,147.12,147.07,2.5157]
[1718312706217,0.34,147.12,147.07,2.5157]
[1718312706613,0.34,147.12,147.06,2.5159]
[1718312706817,20.34,147.12,147.06,2.5159]
[1718312707542,20.34,147.12,147.04,17.6137]
[1718312707750,20.17,147.12,147.05,50.0322]
[1718312707964,20.17,147.12,147.08,2.5155]
[1718312708112,20.0,147.12,147.08,2.5155]
[1718312708314,20.0,147.12,147.07,2.5157]
[1718312708847,20.0,147.12,147.06,2.5159]
[1718312709521,20.0,147.12,147.07,2.5157]
[1718312710342,20.0,147.12,147.06,2.5159]
[1718312710914,20.0,147.12,147.07,2.5157]
[1718312712842,20.0,147.12,147.08,2.5156]
[1718312713225,20.0,147.12,147.07,2.5157]
[1718312713642,15.9028,147.13,147.06,7.5478]
[1718312713846,15.9028,147.13,147.09,2.5153]
[1718312718656,6.2684,147.16,147.07,45.0]
[1718312718837,16.0635,147.17,147.13,2.5147]
[1718312719168,16.0635,147.17,147.08,20.68]
[1718312719169,16.0635,147.17,147.09,2.5154]
[1718312719324,16.0635,147.17,147.1,2.5152]
[1718312720036,16.0635,147.17,147.09,45.0]
[1718312720238,16.0635,147.17,147.13,2.5147]
[1718312723057,16.0635,147.17,147.12,2.5149]
[1718312723434,16.0635,147.17,147.13,2.5147]
[1718312724749,6.6061,147.2,147.15,2.5143]
[1718312724951,6.6061,147.2,147.14,0.17]
[1718312725146,15.0325,147.21,147.16,2.5142]
[1718312725464,15.0325,147.21,147.15,2.5143]
[1718312726167,15.0325,147.21,147.14,45.0]
[1718312727551,15.0325,147.21,147.14,47.5145]
[1718312729359,15.0325,147.21,147.14,45.0]
[1718312729560,15.0325,147.21,147.15,2.5144]
[1718312729759,15.0325,147.21,147.16,2.5142]
[1718312729967,15.0325,147.21,147.17,2.514]
[1718312730650,15.0325,147.21,147.16,2.5141]
[1718312732576,15.0325,147.21,147.15,47.5143]
[1718312732873,15.0325,147.21,147.15,2.5143]
[1718312733789,15.0325,147.21,147.14,2.5145]
[1718312734084,0.17,147.2,147.14,2.5145]
[1718312735894,0.17,147.2,147.15,2.5144]
[1718312736564,15.0325,147.21,147.16,2.5142]
[1718312736760,6.5608,147.2,147.1,5.52616147]
[1718312736961,0.51,147.19,147.12,2.5148]
[1718312737289,16.0497,147.18,147.11,2.515]
[1718312737486,0.34,147.17,147.11,2.515]
[1718312739986,0.34,147.17,147.12,2.5149]
[1718312740298,16.0497,147.18,147.11,5.0301]
[1718312740590,16.0497,147.18,147.14,2.5145]
[1718312740972,16.0497,147.18,147.13,2.5146]
[1718312741567,16.0497,147.18,147.07,20.46282986]
[1718312741903,20.51,147.17,147.1,2.5152]
[1718312742264,20.51,147.17,147.08,45.0]
[1718312742265,20.51,147.17,147.09,2.5153]
[1718312742570,6.1204,147.16,147.09,2.5153]
[1718312744893,6.1204,147.16,147.1,2.5152]
[1718312745264,6.1204,147.16,147.09,2.5153]
[1718312745601,0.34,147.15,147.09,2.5153]
[1718312746477,0.34,147.15,147.08,2.5155]
[1718312747077,0.34,147.15,147.09,2.5154]
[1718312748874,6.1204,147.16,147.09,2.5154]
[1718312749077,0.34,147.15,147.09,2.5154]
[1718312754275,0.34,147.15,147.08,2.5155]
[1718312756074,0.34,147.15,147.09,2.5154]
[1718312756688,6.1204,147.16,147.09,2.5154]
[1718312757104,0.17,147.15,147.08,2.5155]
[1718312757977,6.1204,147.16,147.07,45.0]
[1718312758204,6.1204,147.16,147.08,0.17]
[1718312758382,16.0497,147.18,147.09,7.546]
[1718312758582,16.0497,147.18,147.13,2.5146]
[1718312759220,16.0497,147.18,147.14,2.5145]
[1718312759390,16.0497,147.18,147.13,2.5147]
[1718312760487,16.0497,147.18,147.14,2.5146]
[1718312761214,16.0497,147.18,147.13,2.5147]
[1718312761391,16.0497,147.18,147.12,2.5148]
[1718312763285,16.0497,147.18,147.14,2.5145]
[1718312764413,6.2926,147.2,147.15,2.5144]
[1718312765084,6.2926,147.2,147.14,2.5145]
[1718312765324,6.2926,147.2,147.12,0.17]
[1718312765488,6.2926,147.2,147.14,2.5145]
[1718312767215,6.2926,147.2,147.13,2.5147]
[1718312767390,6.2926,147.2,147.12,47.5148]
[1718312767594,6.2926,147.2,147.13,45.0]
[1718312767809,6.2926,147.2,147.12,2.5148]
[1718312768314,6.2926,147.2,147.13,2.5147]
[1718312770311,6.2926,147.2,147.14,2.5146]
[1718312772328,6.2926,147.2,147.13,2.5146]
[1718312773816,6.2926,147.2,147.12,2.5148]
[1718312774011,16.1323,147.19,147.11,47.515]
[1718312774205,16.1323,147.19,147.11,2.515]
[1718312774807,16.1323,147.19,147.1,45.0]
[1718312774808,16.1323,147.19,147.1,2.5152]
[1718312775007,16.1323,147.19,147.11,2.5151]
[1718312776533,16.1323,147.19,147.1,50.0304]
[1718312776730,16.1323,147.19,147.13,2.5147]
[1718312777842,16.1323,147.19,147.12,2.5148]
[1718312778013,16.1323,147.19,147.13,2.5147]
[1718312778215,16.1323,147.19,147.1,45.0]
[1718312778413,16.1323,147.19,147.09,2.5153]
[1718312778628,16.1323,147.19,147.06,18.09676659]
[1718312778629,16.1323,147.19,147.1,2.5152]
[1718312780617,22.0491,147.18,147.09,2.5154]
[1718312780929,15.7398,147.16,147.09,2.5154]
[1718312781127,0.17,147.15,147.09,2.5154]
[1718312781525,0.17,147.15,147.1,2.5152]
[1718312786218,0.17,147.15,147.06,7.5477]
[1718312786219,6.3983,147.14,147.05,5.0321]
[1718312786437,15.2621,147.12,147.05,2.516]
[1718312786632,0.34,147.11,147.05,2.516]
[1718312790431,15.2621,147.12,147.08,2.5155]
[1718312790846,15.2621,147.12,147.07,2.5157]
[1718312791442,15.2621,147.12,147.06,2.5159]
[1718312791651,0.34,147.11,147.06,2.5159]
[1718312792034,0.34,147.11,147.03,12.5818]
[1718312792035,15.2621,147.12,147.07,2.5157]
[1718312796441,15.2621,147.12,147.02,15.0998]
[1718312796640,0.17,147.11,147.03,45.0]
[1718312797357,0.17,147.11,147.05,2.5161]
[1718312798350,0.17,147.11,147.06,2.5159]
[1718312799254,15.2621,147.12,147.06,2.5159]
[1718312799445,6.6398,147.11,147.05,2.516]
[1718312799977,6.6398,147.11,147.06,2.5159]
[1718312805773,6.6398,147.11,147.05,2.516]
[1718312810178,6.6398,147.11,147.03,50.0328]
[1718312810381,6.6398,147.11,147.05,2.5161]
[1718312810775,6.6398,147.11,147.04,2.5162]
[1718312811381,6.6398,147.11,147.05,2.5161]
[1718312817793,4.8307017,147.12,147.05,2.5161]
[1718312817997,0.34,147.11,147.05,2.5161]
[1718312819309,0.34,147.11,147.06,2.5159]
[1718312819919,0.34,147.11,147.01,12.5835]
[1718312820086,0.34,147.11,147.04,2.5162]
[1718312820395,0.34,147.11,147.0,2.5169]
[1718312820609,0.17,147.1,147.0,2.5169]
[1718312820914,21.8784,147.09,147.0,2.5169]
[1718312821101,0.34,147.08,147.0,2.5169]
[1718312821275,0.17,147.07,147.01,2.5167]
[1718312823485,0.17,147.07,147.0,2.5169]
[1718312826902,6.2232,147.05,146.94,5.036]
[1718312827110,0.34,147.04,146.97,2.5173]
[1718312827604,6.2232,147.05,146.95,7.5534]
[1718312827797,6.2232,147.05,147.0,2.517]
[1718312828003,6.2232,147.05,146.99,2.517]
[1718312828516,6.2232,147.05,147.0,2.5169]
[1718312829013,15.9091,147.06,147.0,5.0338]
[1718312829210,15.9091,147.06,147.02,2.5165]
[1718312831610,6.2232,147.09,147.05,2.516]
[1718312831909,15.9123,147.1,147.04,2.5161]
[1718312832113,15.9123,147.1,147.05,2.5161]
[1718312832620,15.9123,147.1,147.03,2.5163]
[1718312832917,15.9123,147.1,147.02,2.5165]
[1718312833126,0.34,147.09,147.01,45.0]
[1718312833329,15.9123,147.1,147.01,45.0]
[1718312833496,15.9123,147.1,147.03,2.5164]
[1718312833827,15.9123,147.1,147.02,2.5165]
[1718312834612,0.34,147.09,147.03,2.5164]
[1718312835221,0.34,147.09,147.01,45.0]
[1718312835400,6.4362,147.08,147.01,2.5168]
[1718312836097,0.34,147.07,147.01,2.5168]
[1718312836305,0.34,147.07,147.0,2.5169]
[1718312836794,6.4362,147.08,147.02,2.5165]
[1718312836994,0.17,147.07,147.02,2.5165]
[1718312837211,0.17,147.07,147.01,2.5167]
[1718312837518,0.34,147.07,147.01,2.5167]
[1718312837897,0.17,147.07,147.02,2.5165]
[1718312838222,0.17,147.07,147.0,45.0]
[1718312838397,6.4362,147.08,147.02,2.5165]
[1718312840805,15.9123,147.1,147.03,2.5163]
[1718312841017,15.9123,147.1,147.04,2.5163]
[1718312849138,15.9123,147.1,147.02,10.0659]
[1718312849371,15.9123,147.1,147.09,2.5154]
[1718312849509,16.593,147.14,147.08,5.031]
[1718312849832,16.593,147.14,147.04,15.2673]
[1718312850006,16.593,147.14,147.07,2.5158]
[1718312850737,16.593,147.14,147.09,2.5154]
[1718312851306,16.593,147.14,147.08,2.5155]
[1718312852539,16.593,147.14,147.09,2.5154]
[1718312852835,16.593,147.14,147.1,2.5152]
[1718312853447,16.593,147.14,147.09,2.5154]
[1718312854452,16.593,147.14,147.1,2.5152]
[1718312856323,16.593,147.14,147.08,47.5155]
[1718312856526,15.593,147.14,147.08,47.5155]
[1718312857571,15.593,147.14,147.09,2.5154]
[1718312860432,15.593,147.14,147.1,2.5152]
[1718312861963,15.593,147.14,147.11,2.5151]
[1718312865467,123.1533,147.12,147.0,27.190637]
[1718312865654,16.5644,147.1,147.01,2.5167]
[1718312866140,20.51,147.09,147.01,2.5167]
[1718312866638,20.51,147.09,147.02,2.5166]
[1718312868645,20.51,147.09,147.01,2.5167]
[1718312871257,6.1689,147.08,146.99,2.5171]
[1718312871448,16.7867,147.07,146.99,2.5171]
[1718312873265,6.4988,147.04,146.96,0.3292161]
[1718312873442,15.7325,147.02,146.96,0.3292161]
[1718312873642,0.34,147.01,146.96,0.3292161]
[1718312874057,0.33333333,147.0,146.96,0.3292161]
[1718312881850,0.51,146.99,146.96,0.3292161]
[1718312882059,6.2557,146.98,146.96,0.3292161]
[1718312883483,16.6401,146.97,146.96,0.3292161]
[1718312883957,17.1501,146.97,146.96,0.3292161]
[1718312884157,37.1501,146.97,146.96,0.3292161]
[1718312889468,82.1501,146.97,146.88,2.5189]
[1718312889669,20.34,146.96,146.88,2.5189]
[1718312889859,45.17,146.95,146.86,2.5192]
[1718312890058,20.34,146.94,146.86,2.5192]
[1718312890459,0.17,146.93,146.85,2.5194]
[1718312890780,0.17,146.93,146.86,2.5193]
[1718312890967,20.34,146.94,146.87,2.5192]
[1718312891367,0.34,146.94,146.85,5.039]
[1718312892459,0.34,146.94,146.87,2.5191]
[1718312894787,0.34,146.94,146.86,2.5193]
[1718312895172,0.34,146.94,146.87,2.5192]
[1718312895365,0.34,146.94,146.86,2.5193]
[1718312896987,16.6401,146.97,146.83,11.61120137]
[1718312897193,16.6401,146.97,146.9,2.5186]
[1718312898776,16.6401,146.97,146.89,2.5188]
[1718312900490,16.6401,146.97,146.9,2.5186]
[1718312902390,16.6401,146.97,146.92,2.5182]
[1718312902593,16.6401,146.97,146.9,2.5185]
[1718312902812,16.6401,146.97,146.91,2.5185]
[1718312903670,16.6401,146.97,146.9,2.5186]
[1718312904702,16.6401,146.97,146.91,2.5184]
[1718312905878,16.6401,146.97,146.86,38.2471]
[1718312906077,0.34,146.96,146.89,2.5188]
[1718312906596,0.34,146.96,146.9,2.5187]
[1718312908108,16.6401,146.97,146.91,2.5185]
[1718312909899,6.2557,146.98,146.85,2.5195]
[1718312909900,22.4222,146.96,146.85,2.5195]
[1718312910101,20.34,146.95,146.84,2.5196]
[1718312910305,20.34,146.95,146.83,6.139]
[1718312910306,20.34,146.95,146.83,13.6986]
[1718312910479,20.34,146.95,146.86,2.5192]
[1718312910977,20.34,146.95,146.87,2.5192]
[1718312911171,20.34,146.95,146.86,2.5193]
[1718312911492,0.17,146.94,146.86,2.5193]
[1718312912967,0.34,146.95,146.88,2.519]
[1718312914599,0.17,146.95,146.89,2.5188]
[1718312918102,22.4222,146.96,146.87,50.0382]
[1718312918408,22.4222,146.96,146.9,2.5186]
[1718312921810,22.4222,146.96,146.91,1.0259726]
[1718312923799,22.4222,146.96,146.91,3.5444726]
[1718312923986,22.4222,146.96,146.91,2.5185]
[1718312925286,22.4222,146.96,146.92,2.5183]
[1718312925702,15.832,146.96,146.92,2.5183]
[1718312926797,15.832,146.96,146.91,2.5184]
[1718312928620,15.832,146.96,146.92,2.5183]
[1718312929597,6.5367,146.95,146.81,16.6630121]
[1718312929920,16.6733,146.94,146.81,26.7439121]
[1718312930093,0.17,146.93,146.83,2.5197]
[1718312930293,0.17,146.93,146.84,2.5197]
[1718312931326,0.17,146.93,146.85,2.5195]
[1718312932232,0.17,146.93,146.84,2.5196]
[1718312932795,6.5367,146.92,146.83,2.5198]
[1718312932997,0.51,146.91,146.83,2.5198]
[1718312933496,0.51,146.91,146.84,2.5197]
[1718312933716,6.5367,146.92,146.85,2.5195]
[1718312935007,6.5367,146.92,146.81,0.8238121]
[1718312935309,6.5367,146.92,146.88,2.5189]
[1718312936617,6.5367,146.92,146.87,2.5191]
[1718312937604,6.5367,146.92,146.88,2.519]
[1718312939510,6.5367,146.92,146.87,2.5191]
[1718312939711,6.5367,146.92,146.86,5.0387]
[1718312939922,16.3333,146.94,146.84,16.1095]
[1718312940123,16.3333,146.94,146.88,10.0755]
[1718312940320,16.3333,146.94,146.91,2.5184]
[1718312941429,16.3333,146.94,146.9,2.5186]
[1718312941637,16.3333,146.94,146.91,2.5185]
[1718312944636,15.7538,146.98,146.9,5.2074]
[1718312944841,20.0,146.97,146.92,2.5182]
[1718312947243,6.1959,147.03,146.96,2.5175]
[1718312948737,6.1959,147.03,146.97,2.5174]
[1718312949839,6.1959,147.03,146.93,2.5181]
[1718312950040,20.51,147.02,146.93,2.5181]
[1718312950516,16.3582,147.01,146.93,2.5181]
[1718312950714,20.17,147.0,146.94,2.5179]
[1718312950963,20.0,147.0,146.94,2.5179]
[1718312951442,20.0,147.0,146.95,2.5178]
[1718312951843,20.0,147.0,146.96,2.5176]
[1718312952048,20.0,147.0,146.95,2.5177]
[1718312954472,20.0,147.0,146.93,5.0362]
[1718312954745,20.0,147.0,146.95,2.5177]
[1718312954949,20.0,147.0,146.96,2.5176]
[1718312955745,16.3582,147.01,146.97,2.5174]
[1718312956246,16.3582,147.01,146.96,2.5175]
[1718312957447,16.3582,147.01,146.95,2.5177]
[1718312957822,16.3582,147.01,146.9,5.0372]
[1718312958117,0.17,147.0,146.92,2.5183]
[1718312958334,0.17,147.0,146.91,20.0]
[1718312958562,0.17,147.0,146.94,2.518]
[1718312959855,16.3582,147.01,146.94,2.518]
[1718312960064,16.3582,147.01,146.95,2.5177]
[1718312960647,16.3582,147.01,146.94,2.5179]
[1718312961073,16.3582,147.01,146.95,2.5178]
[1718312962671,16.3582,147.01,146.94,2.5179]
[1718312963053,26.4732,147.0,146.91,2.5184]
[1718312963364,26.4732,147.0,146.87,9.3311]
[1718312963365,16.6651,146.97,146.87,9.3311]
[1718312963551,20.34,146.96,146.87,6.812]
[1718312963873,6.1332,146.95,146.87,6.812]
[1718312964043,20.34,146.94,146.87,6.812]
[1718312964367,16.538,146.93,146.87,6.812]
[1718312968179,16.538,146.93,146.87,9.3312]
[1718312970478,16.538,146.93,146.88,2.519]
[1718312972246,16.538,146.93,146.87,9.3311]
[1718312972644,16.538,146.93,146.88,2.519]
[1718312972862,16.538,146.93,146.87,9.3311]
[1718312973453,16.538,146.93,146.87,9.3312]
[1718312974154,0.34,146.92,146.87,6.812]
[1718312974349,20.34,146.92,146.86,6.812]
[1718312974562,0.17,146.91,146.86,6.812]
[1718312974978,0.17,146.91,146.86,9.3314]
[1718312975274,20.34,146.92,146.86,6.812]
[1718312976283,0.34,146.92,146.87,6.812]
[1718312976658,20.34,146.92,146.87,6.812]
[1718312977002,0.17,146.91,146.87,6.812]
[1718312977152,0.17,146.91,146.86,6.812]
[1718312978760,0.17,146.91,146.87,6.812]
[1718312979956,0.17,146.91,146.87,9.3312]
[1718312980260,0.17,146.91,146.87,6.812]
[1718312981180,20.34,146.92,146.87,6.812]
[1718312983466,0.17,146.91,146.87,6.812]
[1718312984168,0.17,146.91,146.86,6.812]
[1718312985061,0.17,146.91,146.86,9.3313]
[1718312992074,0.34,146.92,146.86,9.3313]
[1718312992958,0.34,146.92,146.86,6.812]
[1718312993160,6.2945,146.91,146.87,6.812]
[1718312993486,0.51,146.9,146.87,6.812]
[1718312993693,0.51,146.9,146.83,2.5198]
[1718312994189,0.51,146.9,146.84,2.5197]
[1718312995369,0.51,146.9,146.82,5.04]
[1718312995590,6.2945,146.91,146.83,10.0796]
[1718312995888,6.2945,146.91,146.86,2.5193]
[1718312996804,6.2945,146.91,146.88,2.5189]
[1718312997023,16.538,146.93,146.86,10.077]
[1718312997207,16.538,146.93,146.87,2.5191]
[1718312997509,16.538,146.93,146.86,2.5193]
[1718312997872,16.538,146.93,146.85,2.5195]
[1718312998499,0.51,146.92,146.85,2.5195]
[1718313000701,0.51,146.92,146.86,2.5193]
[1718313001085,16.538,146.93,146.85,12.5976]
[1718313001285,16.538,146.93,146.88,2.5189]
[1718313002002,16.538,146.93,146.81,15.9446121]
[1718313002207,16.538,146.93,146.83,2.5198]
[1718313002380,0.51,146.92,146.82,22.52]
[1718313002698,45.51,146.92,146.82,2.52]
[1718313002907,6.6314,146.91,146.82,2.52]
[1718313003108,0.34,146.9,146.82,2.52]
[1718313003285,0.17,146.89,146.82,2.52]
[1718313003501,0.17,146.89,146.81,3.3439121]
[1718313003801,0.17,146.89,146.82,2.52]
[1718313005708,0.17,146.89,146.84,2.5196]
[1718313007048,0.17,146.89,146.83,2.5198]
[1718313007678,0.17,146.89,146.82,2.52]
[1718313008415,6.6314,146.91,146.81,0.8238121]
[1718313008591,6.6314,146.91,146.84,2.5196]
[1718313008911,6.6314,146.91,146.81,0.8238121]
[1718313008912,6.6314,146.91,146.83,2.5198]
[1718313009487,55.8365,146.9,146.81,0.8238121]
[1718313009783,20.42,146.88,146.81,0.8238121]
[1718313009990,45.51,146.87,146.81,0.8238121]
[1718313010214,15.4165,146.86,146.81,0.8238121]
[1718313010380,0.34,146.85,146.81,0.8238121]
[1718313011218,0.34,146.85,146.71,2.5219]
[1718313011219,20.42,146.82,146.71,2.5219]
[1718313011430,20.42,146.8,146.7,2.5221]
[1718313011593,36.1765,146.79,146.67,0.8238121]
[1718313011804,27.1727,146.78,146.67,0.8238121]
[1718313012124,0.34,146.77,146.67,0.8238121]
[1718313012446,6.9227,146.78,146.71,2.5218]
[1718313012607,0.17,146.77,146.71,2.5218]
[1718313012796,0.34,146.77,146.72,2.5217]
[1718313013306,0.34,146.77,146.71,2.5219]
[1718313013489,0.17,146.76,146.71,2.5219]
[1718313013695,0.34,146.77,146.7,2.5221]
[1718313013911,0.17,146.76,146.7,2.5221]
[1718313014103,0.34,146.77,146.72,2.5217]
[1718313014560,0.34,146.77,146.69,20.0]
[1718313014826,0.17,146.76,146.69,20.0]
[1718313015108,0.17,146.76,146.67,0.8238121]
[1718313015109,0.34,146.76,146.67,0.8238121]
[1718313015312,0.17,146.75,146.69,2.5222]
[1718313015504,0.17,146.75,146.7,2.522]
[1718313015702,6.5827,146.78,146.72,2.5216]
[1718313015901,0.51,146.77,146.72,2.5216]
[1718313016794,6.5827,146.78,146.68,0.17]
[1718313017000,15.4165,146.79,146.76,2.5211]
[1718313017223,6.4077,146.82,146.76,2.5211]
[1718313018506,0.51,146.81,146.75,2.5212]
[1718313019833,20.51,146.81,146.75,2.5212]
[1718313020834,20.51,146.81,146.76,2.521]
[1718313021410,20.51,146.81,146.75,2.5212]
[1718313021630,20.51,146.81,146.73,2.5215]
[1718313022016,20.51,146.81,146.74,2.5214]
[1718313022317,20.51,146.81,146.74,2.5213]
[1718313023223,20.51,146.81,146.73,2.5215]
[1718313023629,20.51,146.81,146.74,2.5214]
[1718313025321,20.51,146.81,146.72,5.0434]
[1718313025729,20.51,146.81,146.72,12.6087]
[1718313025945,20.51,146.81,146.76,2.521]
[1718313026144,6.4077,146.82,146.73,10.0859]
[1718313026317,6.4077,146.82,146.78,2.5206]
[1718313026626,6.4077,146.82,146.77,2.5208]
[1718313028047,6.4077,146.82,146.77,2.5209]
[1718313028846,0.34,146.81,146.75,2.5211]
[1718313029053,0.17,146.8,146.75,2.5211]
[1718313030121,0.17,146.8,146.74,2.5214]
[1718313030347,0.17,146.8,146.73,2.5215]
[1718313030553,45.17,146.8,146.72,2.5217]
[1718313030758,20.17,146.79,146.73,2.5216]
[1718313030921,15.2645,146.77,146.71,2.5218]
[1718313031122,0.34,146.76,146.7,2.5219]
[1718313031347,20.51,146.76,146.7,2.5219]
[1718313031520,20.51,146.76,146.71,2.5219]
[1718313032153,0.51,146.76,146.71,2.5219]
[1718313032329,0.51,146.76,146.72,2.5217]
[1718313032538,0.34,146.76,146.72,2.5217]
[1718313032731,0.17,146.76,146.72,2.5217]
[1718313032938,0.34,146.76,146.67,18.4815121]
[1718313033141,0.34,146.76,146.72,2.5217]
[1718313033562,0.17,146.76,146.72,2.5217]
[1718313034069,15.4345,146.77,146.73,2.5215]
[1718313034879,0.17,146.76,146.72,2.5217]
[1718313035180,0.34,146.76,146.72,2.5217]
[1718313036175,0.34,146.76,146.7,2.522]
[1718313036856,0.34,146.76,146.71,2.5219]
[1718313039270,6.3602,146.75,146.68,5.0448]
[1718313039564,0.34,146.74,146.69,2.5222]
[1718313040070,0.34,146.74,146.68,2.5224]
[1718313040249,0.34,146.74,146.7,2.5221]
[1718313042861,0.34,146.74,146.67,3.3463121]
[1718313043175,65.34,146.74,146.67,3.3463121]
[1718313043353,0.17,146.73,146.67,3.3463121]
[1718313044156,15.7079,146.72,146.67,0.8238121]
[1718313044357,45.34,146.71,146.67,0.8238121]
[1718313044587,0.17,146.7,146.67,0.8238121]
[1718313045458,0.17,146.71,146.67,3.3464121]
[1718313045765,0.17,146.71,146.67,0.8238121]
[1718313046582,0.34,146.71,146.67,0.8238121]
[1718313046968,0.34,146.71,146.67,3.3464121]
[1718313048285,0.34,146.71,146.67,0.8238121]
[1718313052269,65.76,146.71,146.67,0.8238121]
[1718313052471,20.0,146.7,146.67,0.8238121]
[1718313052780,6.351,146.69,146.67,0.8238121]
[1718313053207,20.0,146.68,146.67,0.8238121]
[1718313053365,65.34,146.68,146.67,0.8238121]
[1718313053566,81.9079,146.68,146.67,0.8238121]
[1718313053785,102.3279,146.68,146.56,7.5735]
[1718313054087,20.42,146.66,146.59,2.5239]
[1718313054288,6.6487,146.63,146.55,2.5246]
[1718313054505,35.9205,146.61,146.52,0.8238121]
[1718313054661,35.9205,146.61,146.53,2.525]
[1718313054867,20.34,146.6,146.54,2.0248]
[1718313055085,20.34,146.6,146.54,2.5248]
[1718313055401,15.5005,146.61,146.52,0.8238121]
[1718313055402,6.6487,146.63,146.53,7.575]
[1718313055589,0.34,146.62,146.57,2.5243]
[1718313055996,0.34,146.62,146.58,2.5241]
[1718313056194,0.34,146.62,146.54,5.0496]
[1718313056381,0.34,146.62,146.57,2.5243]